Cogmind - Beta 15 @@@ ROGUE MODE // 2025.07.13 @ 22:53:49 Player: puppuppit Result: Destroyed by H-55 Commando with Gauss Rifle Performance ------------- Evolutions (2) 1000 Regions Visited (11) 2200 Robots Destroyed (350) 1750 Value Destroyed (10657) 10657 Prototype IDs (9) 180 Alien Tech Used (0) 0 Bonus (3693) 3693 TOTAL SCORE: 19480 Bonus ------- High Alert Combat Kills 3131 Follower Combat Kills 214 Entered Garrisons 400 Friendly Fire -52 Cogmind --------- Core Integrity 0/550 Matter 143/300 Energy 150/150 System Corruption 4% Temperature Hot (240) Movement Treading (163) Location -8/Materials Parts ------- > --- POWER (1) -------- Micro Nuclear Core > --- PROPULSION (3) --- Light Treads Light Treads Armored Treads > --- UTILITY (3) ------ Improved Cooling System Large Storage Unit Hacking Suite > --- WEAPON (4) ------- Gauss Rifle Coil Gun Coil Gun Coil Gun > --- INVENTORY (15) --- Light Treads Improved Hover Unit Aerolev Unit Aerolev Unit Aerolev Unit Gravmag System Gravmag System Gravmag System Combat Airjet Large Matter Pod (150) High-capacity Matter Pod (200) Light Armor Plating Heavy Assault Rifle Gauss Rifle Shock Bomb Launcher Peak State ------------ > --- POWER ------------ Micro Nuclear Core > --- PROPULSION ------- Gravmag System Gravmag System Combat Airjet > --- UTILITY ---------- Large Storage Unit Target Analyzer Hacking Suite > --- WEAPON ----------- Gauss Rifle Coil Gun Coil Gun Coil Gun > --- INVENTORY -------- Aerolev Unit Aerolev Unit Aerolev Unit Gravmag System Improved Cooling System Large Matter Pod High-capacity Matter Pod Heavy Assault Rifle Heavy Assault Rifle Heavy Assault Rifle Heavy Assault Rifle Gauss Rifle [Rating: 46] Favorites ----------- Power Light Ion Engine Engine Light Ion Engine Power Core Light Nuclear Core Reactor Light Antimatter Reactor Propulsion Advanced Treads Treads Advanced Treads Leg Improved Aluminum Leg Hover Unit Gravmag System Utility Large Storage Unit Device Advanced Heat Sink Storage Large Storage Unit Processor Improved Targeting Computer Hackware Hacking Suite Protection Medium Armor Plating Weapon Improved Assault Rifle Ballistic Gun Improved Assault Rifle Ballistic Cannon Assault Cannon Launcher Rocket Launcher Build | -11 -10 -10 -9 -9 -9 -8 -8 -8 -8 -8 -8 ------- Run | Yrd Mat Min Mat Min Exi Min Mat Gar Mat Gar Mat Slots Evolved 4 | . . . 2 . . . 2 . . . . Power . | . . . . . . . . . . . . Propulsion 1 | . . . . . . . 1 . . . . Utility 1 | . . . . . . . 1 . . . . Weapon 2 | . . . 2 . . . . . . . . Parts Attached 122 | 8 7 . 22 3 1 1 19 23 28 3 7 Power 19 | 1 2 . 4 3 . 1 4 1 2 1 . Engine 13 | 1 2 . 4 3 . 1 2 . . . . Core 4 | . . . . . . . 2 . 1 1 . Reactor 2 | . . . . . . . . 1 1 . . Propulsion 41 | 2 2 . 6 . . . 5 8 12 1 5 Treads 36 | 2 2 . 6 . . . 5 8 11 . 2 Leg 1 | . . . . . . . . . . 1 . Wheel . | . . . . . . . . . . . . Hover 4 | . . . . . . . . . 1 . 3 Flight . | . . . . . . . . . . . . Utility 26 | 2 2 . 3 . 1 . 4 3 8 1 2 Device 6 | 1 . . . . . . 1 1 3 . . Storage 6 | 1 1 . 1 . 1 . . . 2 . . Processor 2 | . 1 . . . . . . . . 1 . Hackware 5 | . . . . . . . 2 . 2 . 1 Protection 7 | . . . 2 . . . 1 2 1 . 1 Artifact . | . . . . . . . . . . . . Weapon 36 | 3 1 . 9 . . . 6 11 6 . . Energy Gun . | . . . . . . . . . . . . Energy Cannon . | . . . . . . . . . . . . Ballistic Gun 33 | 3 . . 8 . . . 6 10 6 . . Ballistic Cannon 1 | . . . . . . . . 1 . . . Launcher 2 | . 1 . 1 . . . . . . . . Special Weapon . | . . . . . . . . . . . . Impact Weapon . | . . . . . . . . . . . . Slashing Weapon . | . . . . . . . . . . . . Piercing Weapon . | . . . . . . . . . . . . Special Melee Weapon . | . . . . . . . . . . . . Unidentified Prototypes 3 | . . . 1 . . . 1 . 1 . . Parts Lost 24 | . . 1 1 1 . . 10 10 . 1 . Power 2 | . . . 1 . . . 1 . . . . Propulsion 7 | . . . . . . . 3 3 . 1 . Utility 3 | . . . . 1 . . 1 1 . . . Weapon 12 | . . 1 . . . . 5 6 . . . Highest Loss Streak 5 | . . 1 1 1 . . 5 5 . 1 . To Critical Strikes . | . . . . . . . . . . . . Average Backups 14 | 1 11 14 14 14 15 14 14 14 14 14 14 Power . | . . . . . . . . . . . . Propulsion 3 | . 1 3 3 4 4 4 2 4 4 6 7 Utility 4 | . 6 7 5 4 5 5 3 3 5 3 3 Weapon 5 | . 3 4 5 6 6 5 6 6 4 5 4 Tool/Special . | . . . . . . . . . . . . Unused Backups 39 | . 5 . 10 4 . 2 1 5 2 1 9 Power 1 | . . . . 1 . . . . . . . Propulsion 11 | . . . 2 . . . . 2 1 1 5 Utility 13 | . 5 . 5 . . . . . 1 . 2 Weapon 14 | . . . 3 3 . 2 1 3 . . 2 Tool/Special . | . . . . . . . . . . . . Average Slot Usage (%) 99 | . 99 100 99 100 100 100 98 99 100 99 99 Engine 7 | . 13 14 10 11 11 11 6 5 . . . Core 1 | . . . . . . . 2 . 1 9 9 Reactor 1 | . . . . . . . . 3 7 . . Treads 24 | . 28 28 22 22 22 22 26 26 27 22 19 Device 2 | . 1 . . . . . . 7 4 . . Storage 10 | . 14 14 11 11 11 11 9 9 9 9 9 Processor 3 | . 12 14 7 . . . . . . 6 6 Hackware 3 | . . . . . . . 10 2 9 2 7 Protection 5 | . . . 3 11 11 11 6 7 3 8 2 Ballistic Gun 37 | . 27 28 43 43 44 44 35 35 36 35 36 Peak Build Rating 46 | 9 12 12 26 26 26 26 34 40 45 40 46 Average Rating 28 | 7 10 11 21 25 26 26 32 35 35 37 39 On Entrance 22 | . 9 12 12 24 26 26 26 33 36 28 40 Naked Turns . | . . . . . . . . . . . . Heaviest Build 59 | 12 26 26 42 44 42 42 46 54 59 53 53 Greatest Support 66 | 40 46 46 46 44 44 44 66 66 62 60 60 Greatest Overweight (x) 2 | . . . . . . . . . . 1 2 Average Overweight (x) . | . . . . . . . . . . . . Largest Inventory Capacity 15 | 8 15 15 15 15 15 15 15 15 15 15 15 Average Capacity 14 | 7 12 15 15 15 15 15 15 15 15 15 15 Most Carried 15 | 3 15 15 15 15 15 15 15 15 15 15 15 Average Carried 14 | 1 11 14 14 14 15 14 14 14 14 14 14 Final Capacity 15 | 8 15 15 15 15 15 15 15 15 15 15 15 Final Carried 15 | 3 15 15 15 15 15 15 15 15 15 15 15 Class Distribution -------------------- 33% | Tank 18% | Scavenger-Tank 17% | Scavenger-Gunner 13% | Gunner 11% | Mutant 4% | Hacker-Gunner Dominant Class ---------------- Mutant | -10/Materials Mutant | -10/Mines Gunner | -9/Materials Tank | -9/Mines Tank | -9/Exiles Tank | -8/Mines Tank | -8/Materials Scavenger-Tank | -8/Garrison Scavenger-Gunner | -8/Materials Scavenger-Gunner | -8/Garrison Scavenger-Gunner | -8/Materials Resources | -11 -10 -10 -9 -9 -9 -8 -8 -8 -8 -8 -8 ----------- Run | Yrd Mat Min Mat Min Exi Min Mat Gar Mat Gar Mat Matter Collected 9152 | 343 921 22 1562 456 14 240 1606 1703 1669 424 192 Remotely . | . . . . . . . . . . . . Salvage Created 13575 | 213 803 41 3278 663 . 351 2495 2286 2442 555 448 Parts 775 | 11 45 2 202 41 . 28 140 136 115 32 23 Haulers Intercepted 15 | . 1 . 6 . . . 3 . 5 . . Recyclers Shooed 11 | 1 1 . 1 1 . 3 3 . 1 . . Parts Field Recycled . | . . . . . . . . . . . . Retrieved Matter . | . . . . . . . . . . . . Parts Self-Destructed . | . . . . . . . . . . . . Prevented . | . . . . . . . . . . . . Kills | -11 -10 -10 -9 -9 -9 -8 -8 -8 -8 -8 -8 ------- Run | Yrd Mat Min Mat Min Exi Min Mat Gar Mat Gar Mat Combat Hostiles Destroyed 226 | . 11 1 51 21 . 7 41 45 31 13 5 Melee 1 | . . . . . . . 1 . . . . Guns 201 | . 9 1 48 12 . 7 33 42 31 13 5 AOE 24 | . 2 . 3 9 . . 7 3 . . . Classes Destroyed 18 | 3 5 . 2 2 . . 2 4 . . . Worker 41 | 2 6 . 13 1 . 3 7 . 9 . . Builder 10 | . 1 . 5 . . 2 2 . . . . Tunneler 10 | 3 . . 3 3 . . . . 1 . . Hauler 15 | . 1 . 6 . . . 3 . 5 . . Recycler 33 | 1 3 . 9 5 . 2 8 . 4 . 1 Mechanic 7 | . . . . . . . 1 2 3 . 1 Operator 5 | . . . 1 . . . 2 . 2 . . Watcher 11 | . 2 . 3 . . . 4 1 . . 1 Swarmer 48 | . 3 . 13 8 . 7 4 8 2 3 . Cutter 2 | . . . . . . . . 2 . . . Grunt 111 | . 8 1 28 . . . 31 12 22 6 3 Brawler 1 | . . . . . . . . 1 . . . Duelist 4 | . . . . . . . . 2 1 1 . Protector 2 | . . . . . . . 1 . 1 . . Sentry 40 | . . . 10 2 . . 5 16 5 . 2 Demolisher 2 | . . . . 1 . . . 1 . . . Programmer 8 | . . . . . . . . 5 . 3 . Assembled 10 | . . . . 10 . . . . . . . Best Kill Streak 15 | 4 4 1 9 9 . 7 15 7 6 5 4 Combat Bots Only 9 | . 4 1 7 9 . 7 7 7 4 5 3 Max Kills in Single Turn 5 | 1 2 1 3 4 . 1 5 3 2 1 1 Gunslinging 1 | . . . 1 . . . 1 1 1 . . Exploded 4 | . 2 . 2 4 . . 2 3 . . . Melee 1 | . . . . . . . 1 . . . . Uniques/NPCs Destroyed . | . . . . . . . . . . . . Combat | -11 -10 -10 -9 -9 -9 -8 -8 -8 -8 -8 -8 -------- Run | Yrd Mat Min Mat Min Exi Min Mat Gar Mat Gar Mat Hostile Shots Fired 718 | . 47 . 127 36 . 15 149 169 102 39 34 Missed 197 | . 7 . 48 13 . 1 32 48 29 12 7 Hits 521 | . 40 . 79 23 . 14 117 121 73 27 27 Melee 3 | . . . . . . . . 1 . 2 . Projectile 518 | . 40 . 79 23 . 14 117 120 73 25 27 AOE 7 | . . . . . . . . 7 . . . Critical Strikes 14 | . 1 . 2 3 . . 2 2 3 1 . Damage Taken 7894 | . 513 35 977 279 . 116 1959 1967 1214 372 462 Core 813 | . 87 . 145 14 . 16 171 155 150 22 53 Absorbed by Shields 45 | . . . . . . . . 45 . . . Redirected to Shielding 59 | . . . 34 25 . . . . . . . Regen/Repaired (Parts) 420 | . . . 167 . . . . . 253 . . Core Remaining (%) 73 | 100 . 65 . . . 56 . . . . . Volleys Fired 606 | 22 70 3 118 34 . 20 103 118 85 21 12 Largest 4 | 2 2 2 4 4 . 4 4 4 4 4 4 Hottest 118 | 40 40 40 102 92 . 92 104 100 118 118 118 Shots Fired 2113 | 44 139 6 469 127 . 80 401 377 341 81 48 Gun 2074 | 44 138 6 464 124 . 80 393 355 341 81 48 Cannon 21 | . . . . . . . . 21 . . . Launcher 18 | . 1 . 5 3 . . 8 1 . . . Special . | . . . . . . . . . . . . Kinetic 2095 | 44 138 6 464 124 . 80 393 376 341 81 48 Thermal . | . . . . . . . . . . . . Explosive 18 | . 1 . 5 3 . . 8 1 . . . Electromagnetic . | . . . . . . . . . . . . Robot Hit Streak 22 | 6 17 7 21 16 . 13 17 22 12 11 7 Robot Miss Streak 4 | 4 3 . 3 2 . 2 4 3 4 3 4 Penetration Max 2 | . . . . . . . . . 2 1 1 Secondary Targets 46 | . . . 10 . . 1 5 13 10 6 1 Max Gunslinging Chain 2 | . . . 1 . . 1 1 2 1 1 1 Shots Hit Robots 1262 | 23 86 5 284 71 . 40 245 227 201 53 27 Core Hits 588 | 9 41 3 135 40 . 16 130 92 88 21 13 Critical Kills 8 | . 1 . 3 . . . . . 3 . 1 Critical Parts Destroyed 19 | . 2 . 2 . . . 3 2 6 3 1 Critical Strikes 27 | . 3 . 5 . . . 3 2 9 3 2 Destroy 27 | . 3 . 5 . . . 3 2 9 3 2 Melee Attacks . | . . . . . . . . . . . . Impact . | . . . . . . . . . . . . Slashing . | . . . . . . . . . . . . Piercing . | . . . . . . . . . . . . Sneak Attacks . | . . . . . . . . . . . . Combat Hostiles . | . . . . . . . . . . . . Follow-up Attacks . | . . . . . . . . . . . . Damage Inflicted 24571 | 244 1052 53 4644 1648 . 585 5547 4339 4241 1398 820 Guns 21625 | 244 909 53 4059 1092 . 585 4084 4140 4241 1398 820 Cannons . | . . . . . . . . . . . . Explosions 2919 | . 143 . 585 556 . . 1447 188 . . . Melee . | . . . . . . . . . . . . Ramming 27 | . . . . . . . 16 11 . . . Kinetic 21625 | 244 909 53 4059 1092 . 585 4084 4140 4241 1398 820 Thermal 192 | . . . 192 . . . . . . . . Explosive 2727 | . 143 . 393 556 . . 1447 188 . . . Electromagnetic . | . . . . . . . . . . . . Impact . | . . . . . . . . . . . . Slashing . | . . . . . . . . . . . . Piercing . | . . . . . . . . . . . . Highest Corruption 4 | . . . . . . . . 2 4 4 4 Average Corruption 2 | . . . . . . . . 1 2 4 4 Corruption Purged . | . . . . . . . . . . . . Corruption Blocked . | . . . . . . . . . . . . Effects 68 | . . . . . . . . 7 39 11 11 Message Errors 19 | . . . . . . . . . 11 3 5 Matter Fused 20 | . . . . . . . . 3 9 5 3 Heat Flow Errors 8 | . . . . . . . . 2 4 1 1 Energy Discharges 10 | . . . . . . . . 2 7 . 1 Data Loss (minor) 6 | . . . . . . . . . 5 . 1 Data Loss (major) 3 | . . . . . . . . . 2 1 . Misfires 1 | . . . . . . . . . 1 . . Weapon Failures 1 | . . . . . . . . . . 1 . Overload Shots . | . . . . . . . . . . . . Overflow Damage 39 | . 10 . 5 16 . . . 8 . . . Projectiles . | . . . . . . . . . . . . Explosions 39 | . 10 . 5 16 . . . 8 . . . Melee . | . . . . . . . . . . . . Knockbacks 1 | . . . . . . . 1 . . . . Impact 1 | . . . . . . . 1 . . . . Kinetic . | . . . . . . . . . . . . Secondary . | . . . . . . . . . . . . Self-Inflicted Damage 91 | . . . . . . . 91 . . . . Shots 2 | . . . . . . . 2 . . . . Rammed 3 | . . . . . . . 2 1 . . . Targets Rammed 4 | . . . . . . . 3 1 . . . Kicked . | . . . . . . . . . . . . Crushed 1 | . . . . . . . 1 . . . . Highest Temperature 369 | . 18 . 175 110 . 180 144 247 314 349 369 Average Temperature 56 | . 9 . 37 33 . 74 38 52 83 122 138 Received Heat Transfer 3279 | . 273 12 399 108 . . 954 534 666 126 207 Effects 4 | . . . . . . . . . 1 2 1 Shutdowns 1 | . . . . . . . . . . 1 . Energy Bleed 2 | . . . . . . . . . 1 . 1 Interference 1 | . . . . . . . . . . 1 . Siege Activations . | . . . . . . . . . . . . Martial Activations . | . . . . . . . . . . . . Shielding Activations . | . . . . . . . . . . . . Robots Disrupted . | . . . . . . . . . . . . Combat Hostiles . | . . . . . . . . . . . . Robots Corrupted . | . . . . . . . . . . . . Combat Hostiles . | . . . . . . . . . . . . Parts Fried . | . . . . . . . . . . . . Impact Corruptions . | . . . . . . . . . . . . Robots Melted . | . . . . . . . . . . . . Combat Hostiles . | . . . . . . . . . . . . Parts Melted 1 | . . . . . . . . . 1 . . Heat Transferred 150 | . . . 150 . . . . . . . . Parts Sabotaged . | . . . . . . . . . . . . Parts Stolen . | . . . . . . . . . . . . Parts Stripped . | . . . . . . . . . . . . Power Chain Reactions . | . . . . . . . . . . . . Alert | -11 -10 -10 -9 -9 -9 -8 -8 -8 -8 -8 -8 ------- Run | Yrd Mat Min Mat Min Exi Min Mat Gar Mat Gar Mat Maximum Alert Level 5 | . 1 . 3 2 . . 3 5 4 4 2 Low Security (%) 24 | 100 99 100 23 14 . 100 24 . . . . Level 1 16 | . . . 29 81 . . 18 . . . . Level 2 12 | . . . 15 4 . . 33 9 . . 100 Level 3 15 | . . . 32 . . . 23 25 . 37 . Level 4 23 | . . . . . . . . 22 100 62 . Level 5 7 | . . . . . . . . 42 . . . High Security . | . . . . . . . . . . . . Max Security . | . . . . . . . . . . . . Sterilizations 1 | . . . 1 . . . . . . . . Peak Influence 2443 | 10 200 194 1091 423 . 152 829 2443 1421 1232 600 Initial 1190 | . . 70 67 423 . . 56 538 1190 872 600 Average 712 | 1 49 58 492 276 . 19 434 1436 1233 1095 512 Influence Increases 8214 | 30 478 204 1771 325 . 195 1423 2045 1192 390 161 Destroy 0b10 Robot/C 4400 | . 220 40 1020 220 . 140 800 940 660 260 100 Destroy 0b10 Robot/NC 695 | 30 65 . 210 45 . 35 140 25 130 . 15 Destroy Leader 794 | . 56 10 262 20 . 20 184 20 160 30 32 Allied During Kill 121 | . . 6 43 5 . . . 12 52 3 . Successful Hack 204 | . 14 . 61 . . . 53 40 19 12 5 Select Force Hacks 180 | . 60 . 60 . . . 30 . 30 . . Disable Machine 345 | . . 120 60 15 . . 60 . 90 . . Anti-Garrison Action 950 | . . . . . . . . 950 . . . Destroy Structure 300 | . 3 28 55 20 . . 66 58 51 10 9 Lose Combat Pursuer 225 | . 60 . . . . . 90 . . 75 . Influence Decreases 7691 | 30 295 213 859 1195 216 49 740 431 2293 500 870 Entered New Map 3835 | . . 113 107 663 216 . 90 291 1253 470 632 Time Decay 3136 | 30 295 90 702 522 . 49 550 . 660 . 238 Lost Part 240 | . . 10 10 10 . . 100 100 . 10 . Lost Ally 180 | . . . 40 . . . . 40 80 20 . Purge Threat 300 | . . . . . . . . . 300 . . Squads Dispatched 31 | . 2 . 8 . . . 10 . 10 . 1 Investigation 15 | . 2 . 5 . . . 3 . 5 . . Extermination . | . . . . . . . . . . . . Reinforcement 7 | . . . 1 . . . 4 . 2 . . Assault 7 | . . . 2 . . . 1 . 3 . 1 Garrison 2 | . . . . . . . 2 . . . . Intercept . | . . . . . . . . . . . . Searches Triggered . | . . . . . . . . . . . . Construction Impeded 1 | . . . . . . . 1 . . . . Haulers Reinforced . | . . . . . . . . . . . . Active Scanning Responses . | . . . . . . . . . . . . Cargo Convoy Interrupts . | . . . . . . . . . . . . Stealth | -11 -10 -10 -9 -9 -9 -8 -8 -8 -8 -8 -8 --------- Run | Yrd Mat Min Mat Min Exi Min Mat Gar Mat Gar Mat Distress Signals 6 | . . . 2 . . . 2 1 1 . . Communications Jammed . | . . . . . . . . . . . . Distress Signals . | . . . . . . . . . . . . Times Spotted 294 | . 21 2 60 22 . 6 62 54 43 15 9 Peak Tracking Total 19 | . 3 2 9 19 . 3 8 7 5 8 4 Tactical Retreats 14 | . 4 . . 2 . . 4 . . 4 . Traps | -11 -10 -10 -9 -9 -9 -8 -8 -8 -8 -8 -8 ------- Run | Yrd Mat Min Mat Min Exi Min Mat Gar Mat Gar Mat Traps Triggered 9 | . 1 . . . . . 2 2 2 1 1 Indirectly . | . . . . . . . . . . . . Trap Hack Attempts . | . . . . . . . . . . . . Triggered . | . . . . . . . . . . . . Disarmed 4 | . . . . . . . . . 4 . . Reprogrammed . | . . . . . . . . . . . . Reused . | . . . . . . . . . . . . Traps Extracted . | . . . . . . . . . . . . Installed . | . . . . . . . . . . . . Triggered . | . . . . . . . . . . . . Machines | -11 -10 -10 -9 -9 -9 -8 -8 -8 -8 -8 -8 ---------- Run | Yrd Mat Min Mat Min Exi Min Mat Gar Mat Gar Mat Machines Disabled 34 | . . 8 4 1 . . 4 11 6 . . Max in Single Turn 3 | . . . 3 1 . . 1 2 1 . . Garrison Relay 7 | . . . . . . . . 7 . . . Phase Generator 1 | . . . . . . . . 1 . . . Machines Repaired . | . . . . . . . . . . . . Machines Dismantled . | . . . . . . . . . . . . Machines Sabotaged . | . . . . . . . . . . . . Overloaded Fab Kills . | . . . . . . . . . . . . Hacking | -11 -10 -10 -9 -9 -9 -8 -8 -8 -8 -8 -8 --------- Run | Yrd Mat Min Mat Min Exi Min Mat Gar Mat Gar Mat Machines Accessed 55 | . 8 . 16 . 1 . 10 5 11 3 1 Terminals 39 | . 5 . 11 . . . 7 5 7 3 1 Fabricators . | . . . . . . . . . . . . Repair Stations 3 | . 1 . 1 . . . . . 1 . . Recycling Units 5 | . 2 . 2 . . . 1 . . . . Scanalyzers 5 | . . . 2 . . . 1 . 2 . . Garrison Access 2 | . . . . . . . 1 . 1 . . Total Hacks 170 | . 25 . 51 . 1 . 32 13 42 4 2 Successful 111 | . 14 . 36 . 1 . 20 3 35 1 1 Failed 58 | . 10 . 15 . . . 12 10 7 3 1 Catastrophic 6 | . . . . . . . . 4 1 1 . Database Lockouts 1 | . 1 . . . . . . . . . . Manual 114 | . 24 . 36 . . . 22 7 23 . 2 Terminals 116 | . 21 . 30 . . . 25 13 21 4 2 Fabricators . | . . . . . . . . . . . . Repair Stations 16 | . 2 . 7 . . . . . 7 . . Recycling Units 8 | . 2 . 5 . . . 1 . . . . Scanalyzers 24 | . . . 9 . . . 4 . 11 . . Garrison Access 5 | . . . . . . . 2 . 3 . . Terminal Hacks 26 | . 3 . 5 . 1 . 7 3 5 1 1 Record 1 | . . . . . 1 . . . . . . Robot Analysis 12 | . 2 . 3 . . . 7 . . . . Prototype ID Bank 2 | . . . 1 . . . . . 1 . . Emergency Access Points 1 | . . . . . . . . 1 . . . Terminal Index 4 | . 1 . 1 . . . . . 1 . 1 Unreport Threat 2 | . . . . . . . . . 2 . . Disarm Traps 1 | . . . . . . . . . 1 . . Garrison Registry 1 | . . . . . . . . 1 . . . Patrol Navigation 2 | . . . . . . . . 1 . 1 . Fabricator Hacks . | . . . . . . . . . . . . Repair Station Hacks 7 | . . . 2 . . . . . 5 . . Scan Component 4 | . . . 1 . . . . . 3 . . Repair 3 | . . . 1 . . . . . 2 . . Recycling Unit Hacks 1 | . . . . . . . 1 . . . . Retrieve Components 1 | . . . . . . . 1 . . . . Scanalyzer 18 | . . . 8 . . . 1 . 9 . . Insert Component 9 | . . . 4 . . . 1 . 4 . . Analyze 9 | . . . 4 . . . . . 5 . . Garrison Access Hacks 2 | . . . . . . . 1 . 1 . . Unlock Access 2 | . . . . . . . 1 . 1 . . Unauthorized Hacks 57 | . 11 . 21 . . . 10 . 15 . . Terminals 44 | . 9 . 16 . . . 8 . 11 . . Botnet 18 | . 4 . 6 . . . 2 . 6 . . Skim 26 | . 5 . 10 . . . 6 . 5 . . Fabricators . | . . . . . . . . . . . . Repair Stations 2 | . . . 1 . . . . . 1 . . Patch 2 | . . . 1 . . . . . 1 . . Recycling Units 5 | . 2 . 3 . . . . . . . . Reject 1 | . . . 1 . . . . . . . . Recyclers 1 | . . . 1 . . . . . . . . Tunnel 3 | . 2 . 1 . . . . . . . . Scanalyzers 3 | . . . 1 . . . 1 . 1 . . Extract 3 | . . . 1 . . . 1 . 1 . . Garrison Access 3 | . . . . . . . 1 . 2 . . Reprogram 1 | . . . . . . . . . 1 . . Intercept 2 | . . . . . . . 1 . 1 . . Data Cores Recovered . | . . . . . . . . . . . . Used . | . . . . . . . . . . . . Hacking Detections 49 | . 6 . 14 . . . 10 5 11 2 1 Full Trace Events 7 | . 1 . 2 . . . 1 1 2 . . Feedback Events 2 | . . . . . . . . . 2 . . Corruption 2 | . . . . . . . . . 2 . . Feedback Blocked . | . . . . . . . . . . . . Robot Schematics Acquired . | . . . . . . . . . . . . Robots Built . | . . . . . . . . . . . . Authchips . | . . . . . . . . . . . . Time . | . . . . . . . . . . . . Total Robot Build Rating . | . . . . . . . . . . . . Part Schematics Acquired 31 | . . . 18 . . . 6 . 7 . . Parts Built . | . . . . . . . . . . . . Authchips . | . . . . . . . . . . . . Time . | . . . . . . . . . . . . Total Part Build Rating . | . . . . . . . . . . . . Parts Repaired 3 | . . . 1 . . . . . 2 . . Time 137 | . . . 32 . . . . . 105 . . Parts Recycled . | . . . . . . . . . . . . Recycled Matter . | . . . . . . . . . . . . Retrieved Matter . | . . . . . . . . . . . . Retrieved Components 9 | . . . . . . . 9 . . . . Parts Scanalyzed 8 | . . . 4 . . . 1 . 3 . . Part Schematics Acquired 8 | . . . 4 . . . . . 4 . . Parts Damaged 1 | . . . . . . . 1 . . . . Bothacking | -11 -10 -10 -9 -9 -9 -8 -8 -8 -8 -8 -8 ------------ Run | Yrd Mat Min Mat Min Exi Min Mat Gar Mat Gar Mat Used RIF Installer . | . . . . . . . . . . . . Robots Hacked . | . . . . . . . . . . . . Non-combat . | . . . . . . . . . . . . Combat . | . . . . . . . . . . . . Robot Hacks Applied . | . . . . . . . . . . . . Relay Couplers Released 29 | . . . . . . . . 29 . . . Machine Destruction 29 | . . . . . . . . 29 . . . Fabnet Peak Effective % . | . . . . . . . . . . . . Robots Rewired 7 | . . . . . . . . 7 . . . Allies Hacked . | . . . . . . . . . . . . Hacks Repelled . | . . . . . . . . . . . . Allies | -11 -10 -10 -9 -9 -9 -8 -8 -8 -8 -8 -8 -------- Run | Yrd Mat Min Mat Min Exi Min Mat Gar Mat Gar Mat Total Allies 12 | . . 2 . 1 . . . 7 2 . . Largest Group 4 | . . 2 2 1 . . . 4 3 1 . Highest-Rated Group 72 | . . 38 38 31 . . . 72 48 16 . Highest-Rated Ally 31 | . . 31 31 31 . . . 18 16 16 . Initial Warlord ECA Mod 30 | . . . . . . . . . 10 10 10 Total Orders . | . . . . . . . . . . . . Ally Attacks 73 | . . 4 8 . . . . 7 50 4 . Total Damage 1157 | . . 403 144 . . . . 98 458 54 . Kills 9 | . . 1 2 . . . . 2 4 . . Allies Corrupted 2 | . . . . . . . . 1 . 1 . Allies Melted . | . . . . . . . . . . . . Intel | -11 -10 -10 -9 -9 -9 -8 -8 -8 -8 -8 -8 ------- Run | Yrd Mat Min Mat Min Exi Min Mat Gar Mat Gar Mat Active Infowar (turns) 239 | 93 146 . . . . . . . . . . Terrain 239 | 93 146 . . . . . . . . . . Robot Analysis Total 12 | . 2 . 3 . . . 7 . . . . Derelict Logs Recovered 1 | . . . . 1 . . . . . . . Drone Launches . | . . . . . . . . . . . . Drone Recoveries . | . . . . . . . . . . . . Exploration | -11 -10 -10 -9 -9 -9 -8 -8 -8 -8 -8 -8 ------------- Run | Yrd Mat Min Mat Min Exi Min Mat Gar Mat Gar Mat Turns Passed 14522 | 166 1278 251 3021 1454 312 449 1599 2446 2495 545 506 Spaces Moved 7512 | 58 642 148 1651 887 215 259 782 1332 1102 219 217 Core 1 | 1 . . . . . . . . . . . Treads 7488 | 57 642 148 1651 887 215 259 782 1332 1102 219 194 Legs . | . . . . . . . . . . . . Wheels . | . . . . . . . . . . . . Hover 23 | . . . . . . . . . . . 23 Flight . | . . . . . . . . . . . . Fastest Speed 50 | 50 160 160 145 145 145 145 145 145 155 163 121 Average Speed 154 | 158 160 160 151 145 145 145 145 152 160 198 198 Slowest Speed 320 | 160 160 160 160 145 145 145 145 155 163 245 320 Overloaded Moves . | . . . . . . . . . . . . Propulsion Burnouts . | . . . . . . . . . . . . Robots Hopped . | . . . . . . . . . . . . Potential Cave-ins . | . . . . . . . . . . . . Cave-ins Triggered . | . . . . . . . . . . . . Exploration Rate (%) 59 | 5 84 40 96 98 60 58 58 85 76 32 16 Regions Visited 11 Branch Regions 4 Pre-discovered Areas 11 | . 3 . 3 . 1 . 1 . 3 . . Known Exits Taken 4 | . . 1 . . . 1 1 . 1 . . Unknown Exits Taken 5 | 1 1 . 1 1 1 . . . . . . Scrap Searched 3 | . . 1 . 1 . 1 . . . . . Spaces Dug 2 | . . . . . . . . 2 . . . Terrain Destroyed 299 | . 1 . 58 43 . . 69 58 59 5 6 Melee . | . . . . . . . . . . . . Projectile 30 | . . . . . . . . . 19 5 6 AOE 268 | . 1 . 58 43 . . 69 58 39 . . Terrain Rammed . | . . . . . . . . . . . . Walls Destroyed . | . . . . . . . . . . . . Machines Disabled . | . . . . . . . . . . . . Actions | -11 -10 -10 -9 -9 -9 -8 -8 -8 -8 -8 -8 --------- Run | Yrd Mat Min Mat Min Exi Min Mat Gar Mat Gar Mat Total 9166 | 89 772 157 1917 979 216 284 1006 1590 1611 277 268 Wait 597 | . 21 5 66 39 . 1 64 30 345 16 10 Move 7501 | 57 641 147 1650 886 214 258 781 1331 1101 218 217 Hop . | . . . . . . . . . . . . Pick Up 97 | 2 17 1 20 6 . 1 15 16 10 4 5 Fast Attach 32 | 7 4 . 2 . . . 5 5 1 3 5 Attach 31 | . . 1 3 1 . . 12 10 1 . 3 Detach 11 | . 1 . 1 . . . 1 2 1 1 4 Swap 125 | 1 7 . 28 5 1 1 15 16 42 7 2 Drop 115 | . 11 . 29 8 1 3 7 16 25 5 10 Fire 606 | 22 70 3 118 34 . 20 103 118 85 21 12 Melee . | . . . . . . . . . . . . Ram . | . . . . . . . . . . . . Kick . | . . . . . . . . . . . . Crush 4 | . . . . . . . 3 1 . . . Escape Stasis 4 | . . . . . . . . 2 . 2 . Rewire 43 | . . . . . . . . 43 . . . Trap . | . . . . . . . . . . . . Miscellaneous . | . . . . . . . . . . . . Route ------- -11/Scrapyard -10/Materials (discovered 4 exits: *Mat x3 / [*Min]) -10/Mines (discovered 2 exits: *Mat x2) -9/Materials (discovered 4 exits: *Mat x3 / [*Min]) -9/Mines (discovered 3 exits: *Mat x2 / *Exi) -9/Exiles -8/Mines (discovered 2 exits: *Mat x2) -8/Materials (discovered 4 exits: *Fac x3 / Gar) -8/Garrison (discovered 4 exits: Fac x3 / *Mat) -8/Materials (discovered 3 exits: *Fac x2 / Gar) -8/Garrison (discovered 2 exits: *Mat x2) -8/Materials History --------- Turn | Location | Event 13 | -11/Scrapyard | Discovered new exit (range 15) 167 | -11/Scrapyard | Entered Materials 289 | -10/Materials | Discovered new exit (range 15) 301 | -10/Materials | Build established: Mutant 857 | -10/Materials | Central database locked down 940 | -10/Materials | Identified exit to Materials 1070 | -10/Materials | Learned location of Mines (-9) 1117 | -10/Materials | Learned Storage trap positions 1152 | -10/Materials | Learned 4 Recycling zone layouts 1198 | -10/Materials | Learned Storage security intel 1362 | -10/Materials | Discovered new exit (range 14) 1445 | -10/Materials | Entered Mines 1696 | -10/Mines | Entered Materials 1696 | -9/Materials | Accompanied by 2 allies 1696 | -9/Materials | Evolved 2 slots: Weapon x2 1697 | -9/Materials | Identified exit to Materials 1701 | -9/Materials | Led the pair of lost Derelicts to an unsafe place 1996 | -9/Materials | Build established: Gunner 2212 | -9/Materials | Repaired Imp. Treads 2233 | -9/Materials | Discovered new exit (range 16) 2390 | -9/Materials | Discovered exit to Materials (range 12) 2741 | -9/Materials | Loaded intel: 12 terminal locations 2761 | -9/Materials | Learned location of 1 exit from Storage 2803 | -9/Materials | Learned Materials emergency access door positions 3765 | -9/Materials | Discovered exit to Materials (range 9) 3862 | -9/Materials | Learned location of Recycling (-7) 3918 | -9/Materials | Learned 2 Storage zone layouts 3956 | -9/Materials | Learned Storage security intel 4107 | -9/Materials | Build established: Tank 4496 | -9/Materials | First assault squad dispatched 4610 | -9/Materials | Sterilization system engaged 4610 | -9/Materials | Non-combat units ordered to evacuate 4617 | -9/Materials | Destroyed 7 combat bots 4710 | -9/Materials | Combat units ordered to evacuate 4717 | -9/Materials | Entered Mines 4737 | -9/Mines | Met a Derelict bent on vengeance 4881 | -9/Mines | Joined a pair of Derelicts in attacking an 0b10 outpost 5016 | -9/Mines | Found a damaged Exp. Sensor Array with a note attached 5020 | -9/Mines | Found Prototype Device 5158 | -9/Mines | Learned Materials stockpile data 5169 | -9/Mines | Assembled infested the area 5202 | -9/Mines | Destroyed 9 combat bots 5489 | -9/Mines | Received a Mining Laser from a helpful Derelict 6164 | -9/Mines | Deemed a non-threat by the Exiles lab entrance 6165 | -9/Mines | Discovered new exit (range 5) 6171 | -9/Mines | Entered Exiles 6206 | -9/Exiles | Met 8R-AWN 6232 | -9/Exiles | Met EX-HEX 6332 | -9/Exiles | Met EX-DEC 6357 | -9/Exiles | Learned location of Zion (-7) 6383 | -9/Exiles | Met EX-BIN 6466 | -9/Exiles | Discovered new exit (range 10) 6483 | -9/Exiles | Entered Mines 6685 | -8/Mines | Found a Scrap Suit stashed away for nefarious purposes 6706 | -8/Mines | Found Scrap Suit 6907 | -8/Mines | Destroyed 7 combat bots 6932 | -8/Mines | Entered Materials 6932 | -8/Materials | Evolved 2 slots: Propulsion x1, Utility x1 7139 | -8/Materials | Identified exit to Garrison 7152 | -8/Materials | Garrison activated, responded to threat 7353 | -8/Materials | Destroyed 7 combat bots 7358 | -8/Materials | Lost 5 parts (1p1n1u2w) 7793 | -8/Materials | Learned Storage trap positions 7849 | -8/Materials | Identified exit to Factory 7894 | -8/Materials | Learned location of 2 exits from Lower Caves 7928 | -8/Materials | Learned location of Lower Caves (-7) 7937 | -8/Materials | Identified Exp. Sensor Array 7952 | -8/Materials | Learned Factory stockpile data 7968 | -8/Materials | Learned Factory garrison access intel 7976 | -8/Materials | Learned location of 1 exit from Recycling 7989 | -8/Materials | Discovered exit to Factory (range 11) 7993 | -8/Materials | Learned location of 2 exits from Lower Caves 8020 | -8/Materials | Learned Storage trap positions 8132 | -8/Materials | First assault squad dispatched 8496 | -8/Materials | Garrison activated, responded to threat 8525 | -8/Materials | Build established: Hacker-Gunner 8531 | -8/Materials | Entered Garrison 8532 | -8/Garrison | Identified exit to Materials 8565 | -8/Garrison | Triggered checkpoint 8615 | -8/Garrison | Discovered exit to Factory (range 49) 8615 | -8/Garrison | Discovered exit to Factory (range 72) 8615 | -8/Garrison | Discovered exit to Factory (range 67) 8615 | -8/Garrison | Discovered exit to Materials (range 48) 8841 | -8/Garrison | Triggered checkpoint 8841 | -8/Garrison | Triggered checkpoint 8884 | -8/Garrison | Destroyed 7 combat bots 8890 | -8/Garrison | Lost 5 parts (2n1u2w) 8917 | -8/Garrison | Triggered checkpoint 9209 | -8/Garrison | Triggered checkpoint 9251 | -8/Garrison | Triggered checkpoint 9260 | -8/Garrison | Garrison Relay disabled 9308 | -8/Garrison | Build established: Tank 9389 | -8/Garrison | Garrison Relay disabled 9392 | -8/Garrison | Garrison Relay disabled 9447 | -8/Garrison | Garrison Relay disabled 9659 | -8/Garrison | Triggered checkpoint 9801 | -8/Garrison | Phase Generator disabled 9899 | -8/Garrison | Build established: Scavenger-Tank 9967 | -8/Garrison | Lost 3 allies 10055 | -8/Garrison | Triggered checkpoint 10201 | -8/Garrison | Triggered checkpoint 10202 | -8/Garrison | Core integrity fell below 50% 10230 | -8/Garrison | Garrison Relay disabled 10580 | -8/Garrison | Garrison Relay disabled 10581 | -8/Garrison | Garrison Relay disabled 10977 | -8/Garrison | Entered Materials 10977 | -8/Materials | Accompanied by 3 allies 11364 | -8/Materials | Met 7R-MNS 11377 | -8/Materials | First assault squad dispatched 11510 | -8/Materials | Learned location of 1 exit from Extension 11558 | -8/Materials | Learned location of 1 exit from Extension 11592 | -8/Materials | Build established: Scavenger-Gunner 11595 | -8/Materials | Learned Storage garrison access intel 11649 | -8/Materials | Learned location of 1 exit from Recycling 11651 | -8/Materials | Learned 4 Lower Caves zone layouts 11661 | -8/Materials | Learned 4 Recycling zone layouts 11680 | -8/Materials | Learned Factory trap positions 11711 | -8/Materials | Learned 2 Storage zone layouts 11734 | -8/Materials | Core integrity fell below 20% 11754 | -8/Materials | Learned location of Extension (-4) 11976 | -8/Materials | Discovered exit to Factory (range 14) 12489 | -8/Materials | Repaired Gauss Rifle 12552 | -8/Materials | Repaired Broken Gauss Rifle 12657 | -8/Materials | Discovered exit to Factory (range 15) 13037 | -8/Materials | Build established: Scavenger-Tank 13194 | -8/Materials | Identified exit to Garrison 13472 | -8/Materials | Entered Garrison 13472 | -8/Garrison | Accompanied by 1 ally 13473 | -8/Garrison | Identified exit to Materials 13639 | -8/Garrison | Triggered checkpoint 13874 | -8/Garrison | Build established: Scavenger-Gunner 13973 | -8/Garrison | Discovered exit to Materials (range 8) 14017 | -8/Garrison | Entered Materials 14417 | -8/Materials | First assault squad dispatched 14523 | -8/Materials | Destroyed by H-55 Commando with Gauss Rifle Last Messages --------------- 14501_ Slug penetrates Wall. 14501_ Destroyed Aluminum Leg. 14501_ Slug penetrates G-47 Trooper. 14501_ Slug penetrates M-28 Smith. 14501_ Destroyed Wheel. 14505_ Slug penetrates G-47 Trooper. 14505_ M-28 Smith destroyed. 14505_ Slug penetrates G-47 Trooper. 14505_ G-47 Trooper suffers critical hit (Destroy). 14505_ Destroyed Imp. Heat Sink. 14508_ Slug penetrates Wall. 14508_ G-47 Trooper destroyed. 14508_ Switching to secondary target: G-47 Trooper. 14509_ Overheating: Energy bleed (-24). 14512_ Slug penetrates Wall. 14517_ Slug penetrates G-47 Trooper. 14520_ Slug penetrates Wall. 14520_ Slug penetrates G-47 Trooper. 14520_ G-47 Trooper destroyed. 14523_ Penetrated by Slug. Map ----- +----------------------------------------------------+ | ?????????????????????????????????????????????? | | ?????????????????????????????????????????????? | | ?????????????????????????????????????????????? | | ?????????????????????????????????????????????? | | ?????????????????????????????????????????????? | | ?????????????????????????????????????????????? | | ?????????????????????????????????????????????? | | ?????????????????????????????????????????????? | | ?????????????????????????????????????????????? | | ?????????????????????????????????????????????? | | ?????????H???????????????????????????????????? | | ?????????????????????????????????????????????? | | ?????????????????????????????????????????????? | | ?????????????????????????????????????????????? | | ?????????????????????"???????????????????????? | | ?????????????????????"???????????????????????? | | ?????????????????????"???????????????????????? | | ????????????????????? ???????????????????????? | | ??????????????????###+###????????????????????? | | ??????????????????# #????????????????????? | | ??????????????????? ?????????????????????? | | ??????????????????? % u?????????????????????? | | ????????????????????[ t??????????????????????? | | ???????????????????? ??????????????????????? | | ????????????????????#g#??????????????????????? | | ????????????????????#@#??????????????????????? | | ????????????????????# #??????????????????????? | | ????????????????????#%#??????????????????????? | | ?????????????######?#!;????????????????????### | | ?????????????#! !?#%##???????????????????# | | ?????????????# #==#???????????????????# | | ?????????????# """ # %/"??????????????????# | | ?????????????# """ + *# ?????????????????# | | ?????????????# """ #=%# ??????########### | | ?????????????# # #? ????# [ = ! ## | | ??????????########### ########### [ ! ## | | ??????????# # h# #! =!! #### | | ??????????# = # + + """ # | | ??????????# [ # # # """"" + | | ??????????# # # # """"" # | | ??????????# #%*# # """"" #### | | ??????????# # + # "" #??? | | ??????????# / # # # #??? | | ??????????# # # [ ############# | | ??????????#####+##### #######+###?????????# | | ????????????# ! #???????????# | | ????????????# [ *#???????????#*! | | ????????????###+######### ###+######??????# ! | | ????????????? ? # !#??????# | | ??????????? # ! #?????# | +----------------------------------------------------+ Best States ------------- Heat Dissipation 58 Energy Generation 21 Energy Capacity 265 Matter Stores 300 Matter Capacity 300 Sight Range 16 Terrain Scan Range 16 Terrain Scan Density 10 Armor Coverage 225 Weapon Shielding 33 Evasion (%) 40 Targeting Accuracy 6 Target Analysis 5 Recoil Reduction 3 Offensive Hacking 20 Item Schematics ----------------- Imp. Light Cannon | -9/Materials | Scanalyzed Imp. Assault Rifle | -9/Materials | Scanalyzed Weapon Shielding | -9/Materials | Scanalyzed Cooling System | -9/Materials | Scanalyzed VTOL Module | -9/Materials | Extracted Imp. Aluminum Leg | -9/Materials | Extracted Lgt. Assault Rifle | -9/Materials | Extracted Med. Armor Plating | -9/Materials | Extracted Beam Cannon | -9/Materials | Extracted Flail | -9/Materials | Extracted Particle Gun | -9/Materials | Extracted Weight Redist. System | -9/Materials | Extracted Ion Engine | -9/Materials | Extracted Sml. Storage Unit | -9/Materials | Extracted Hvy. Ion Engine | -9/Materials | Extracted Imp. Hover Unit | -9/Materials | Extracted Lrg. Matter Pod | -9/Materials | Extracted Structural Scanner | -9/Materials | Extracted Imp. Sensor Array | -8/Materials | Extracted Hpw. Shotgun | -8/Materials | Extracted Disposable Heat Sink | -8/Materials | Extracted Med. Storage Unit | -8/Materials | Extracted Recoil Stabilizer | -8/Materials | Extracted Lgt. EM Pulse Cannon | -8/Materials | Extracted Lrg. Battery | -8/Materials | Extracted Hvy. EM Pulse Gun | -8/Materials | Extracted Spread Laser | -8/Materials | Extracted Exp. Sensor Array | -8/Materials | Scanalyzed Cmb. Airjet | -8/Materials | Scanalyzed Imp. Cooling System | -8/Materials | Scanalyzed Coil Gun | -8/Materials | Scanalyzed Robot Schematics ------------------ None Fabricated ------------ Nothing Repaired ---------- Imp. Treads | 10% | -9/Materials Gauss Rifle | 22% | -8/Materials Gauss Rifle | 38% | -8/Materials | Broken Alien Tech Used ----------------- None Achievements -------------- None Challenges ------------ None Game ------ Seed DispersionFactoryClaymores Manual? 0 Play Time 01:31:14 Cumulative 428.6 hours Start 2025.07.13 @ 21:25:43 End 2025.07.13 @ 22:53:49 Sessions 1 Manual Loads 0 Difficulty Rogue Special Mode None Game No. 246 Rogue 246 Adventurer 0 Explorer 0 Win Type - Total 4 Types 2/0/1/1/0/0/0/0/0/0 Lore% 85 Gallery% 74 Achievement% 67 Wizard Run 0 Options --------- Layout 2 ASCII 0 Keyboard 1 Movement Vi Keybinds 0 Fullscreen 1 Font 16/Tamsyn Map View 55x47 Zoom Use 0% Tactical HUD 1 Map Filters NONE Filters NONE Steam 0 RUN: a381a652-a293-4295-9495-c60c44c91e3a